[Event "*** Titled Tuesday 3|2 Blitz"]
[Site "Chess.com"]
[Date "2015.11.03"]
[Round "3"]
[White "kikydu96"]
[Black "Sadovsky_Artem"]
[Result "0-1"]
[WhiteElo "2251"]
[BlackElo "2485"]
[TimeControl "180+2"]
[EndTime "11:32:41 PST"]
[Termination "Sadovsky_Artem won by resignation"]

1. e4 {[%clk 0:03:01.9]} 1... g6 {[%clk 0:02:42.6]} 2. d4 {[%clk 0:03:02.2]}
2... Bg7 {[%clk 0:02:34]} 3. Nc3 {[%clk 0:03:02.4]} 3... d6 {[%clk 0:02:35.3]}
4. Be2 {[%clk 0:03:02.7]} 4... a6 {[%clk 0:02:36.4]} 5. h4 {[%clk 0:03:02.3]}
5... b5 {[%clk 0:02:37.2]} 6. h5 {[%clk 0:03:01.2]} 6... Bb7 {[%clk 0:02:38.4]}
7. a3 {[%clk 0:03:01.7]} 7... Nd7 {[%clk 0:02:39.8]} 8. h6 {[%clk 0:03:00.6]}
8... Bf6 {[%clk 0:02:39.1]} 9. f4 {[%clk 0:02:58.6]} 9... e6 {[%clk 0:02:37.4]}
10. Nf3 {[%clk 0:02:57.5]} 10... c5 {[%clk 0:02:38.9]} 11. e5 {[%clk 0:02:57.6]}
11... cxd4 {[%clk 0:02:35.8]} 12. Qxd4 {[%clk 0:02:53.7]} 12... dxe5 {[%clk
0:02:33.5]} 13. fxe5 {[%clk 0:02:50.5]} 13... Nxe5 {[%clk 0:02:35.2]} 14. Qxd8+
{[%clk 0:02:37]} 14... Rxd8 {[%clk 0:02:36.8]} 15. Nxe5 {[%clk 0:02:35.5]} 15...
Bxe5 {[%clk 0:02:38.5]} 16. O-O {[%clk 0:02:26.5]} 16... Ne7 {[%clk 0:02:30]}
17. Bg5 {[%clk 0:02:23]} 17... Rd7 {[%clk 0:02:14.6]} 18. Rad1 {[%clk
0:02:19.1]} 18... Rxd1 {[%clk 0:02:12.4]} 19. Rxd1 {[%clk 0:02:19.3]} 19... Nd5
{[%clk 0:02:14.1]} 20. Nxd5 {[%clk 0:02:05.8]} 20... Bxd5 {[%clk 0:02:15.8]} 21.
c4 {[%clk 0:02:03.7]} 21... bxc4 {[%clk 0:02:17.5]} 22. Bxc4 {[%clk 0:02:04.5]}
22... f6 {[%clk 0:02:16.6]} 23. Bxd5 {[%clk 0:02:03.8]} 23... exd5 {[%clk
0:02:18.3]} 24. Rxd5 {[%clk 0:02:03.9]} 24... Kf7 {[%clk 0:02:19.3]} 25. b4
{[%clk 0:01:47.4]} 25... Ke6 {[%clk 0:02:17.9]} 26. Ra5 {[%clk 0:01:33.2]} 26...
fxg5 {[%clk 0:02:17.5]} 27. Rxa6+ {[%clk 0:01:34.5]} 27... Kf5 {[%clk
0:02:18.7]} 28. Ra7 {[%clk 0:01:28.2]} 28... g4 {[%clk 0:02:19.6]} 29. Rf7+
{[%clk 0:01:25.8]} 29... Ke4 {[%clk 0:02:19.6]} 30. b5 {[%clk 0:01:22.2]} 30...
Rc8 {[%clk 0:02:04.5]} 31. Rf1 {[%clk 0:00:54]} 31... Ra8 {[%clk 0:01:57.9]} 32.
Re1+ {[%clk 0:00:51.7]} 32... Kd5 {[%clk 0:01:59.2]} 33. Rd1+ {[%clk 0:00:49.9]}
33... Bd4+ {[%clk 0:02:00.5]} 34. Kf1 {[%clk 0:00:47.6]} 34... Rxa3 {[%clk
0:02:02.3]} 35. Re1 {[%clk 0:00:43.2]} 35... Ra1 {[%clk 0:02:03.1]} 36. Rxa1
{[%clk 0:00:43.1]} 36... Bxa1 {[%clk 0:02:04.8]} 37. Kf2 {[%clk 0:00:44.2]}
37... Be5 {[%clk 0:02:05.5]} 38. Ke3 {[%clk 0:00:44.3]} 38... g5 {[%clk
0:02:06.1]} 39. b6 {[%clk 0:00:44.4]} 39... Bd4+ {[%clk 0:02:05.7]} 40. Kd3
{[%clk 0:00:44.2]} 40... Bxb6 {[%clk 0:02:07.4]} 0-1

[Event "*** Titled Tuesday 3|2 Blitz"]
[Site "Chess.com"]
[Date "2015.11.03"]
[Round "3"]
[White "TomsKantans"]
[Black "Aygehovit1992"]
[Result "0-1"]
[WhiteElo "2263"]
[BlackElo "2484"]
[TimeControl "180+2"]
[EndTime "11:33:07 PST"]
[Termination "Aygehovit1992 won by resignation"]

1. e4 {[%clk 0:02:38.3]} 1... c5 {[%clk 0:03:00]} 2. Nf3 {[%clk 0:02:37.6]} 2...
e6 {[%clk 0:03:01.3]} 3. g3 {[%clk 0:02:36.3]} 3... Nc6 {[%clk 0:03:01.6]} 4.
Bg2 {[%clk 0:02:36.8]} 4... b5 {[%clk 0:02:58.7]} 5. O-O {[%clk 0:02:36]} 5...
Bb7 {[%clk 0:02:59.6]} 6. Qe2 {[%clk 0:02:34.8]} 6... Qb6 {[%clk 0:02:59]} 7. a4
{[%clk 0:02:35.2]} 7... bxa4 {[%clk 0:02:59.4]} 8. Nc3 {[%clk 0:02:34.6]} 8...
Nb4 {[%clk 0:02:43.8]} 9. d3 {[%clk 0:02:33.9]} 9... Nf6 {[%clk 0:02:42.4]} 10.
Nxa4 {[%clk 0:02:33.4]} 10... Qc7 {[%clk 0:02:42.8]} 11. b3 {[%clk 0:02:33.2]}
11... Be7 {[%clk 0:02:42.9]} 12. Nb2 {[%clk 0:02:25.1]} 12... O-O {[%clk
0:02:43.6]} 13. Nc4 {[%clk 0:02:24.7]} 13... d5 {[%clk 0:02:43.3]} 14. exd5
{[%clk 0:02:19.8]} 14... exd5 {[%clk 0:02:43.7]} 15. Bf4 {[%clk 0:02:19.6]}
15... Qd7 {[%clk 0:02:38.3]} 16. Nce5 {[%clk 0:02:19.5]} 16... Qd8 {[%clk
0:02:35]} 17. Rfe1 {[%clk 0:02:15]} 17... Bd6 {[%clk 0:02:28.4]} 18. Qd2 {[%clk
0:02:07.4]} 18... d4 {[%clk 0:02:23.4]} 19. Re2 {[%clk 0:01:35.2]} 19... Qc7
{[%clk 0:02:19.6]} 20. Bg5 {[%clk 0:01:29.1]} 20... Nfd5 {[%clk 0:02:20.2]} 21.
Nc4 {[%clk 0:01:27.6]} 21... Rfe8 {[%clk 0:02:08.2]} 22. Rxe8+ {[%clk
0:01:25.9]} 22... Rxe8 {[%clk 0:02:08.4]} 23. Nxd6 {[%clk 0:01:16.5]} 23... Qxd6
{[%clk 0:02:09.1]} 24. Rxa7 {[%clk 0:01:17]} 24... Qb6 {[%clk 0:02:07.2]} 25.
Ra1 {[%clk 0:01:14.8]} 25... h6 {[%clk 0:02:05.6]} 26. Bf4 {[%clk 0:01:09.7]}
26... Nxf4 {[%clk 0:02:06.6]} 27. gxf4 {[%clk 0:00:56.6]} 27... Qg6 {[%clk
0:02:02.1]} 28. Kh1 {[%clk 0:00:52.2]} 28... Qg4 {[%clk 0:01:53]} 29. Nh4 {[%clk
0:00:29.1]} 29... Bxg2+ {[%clk 0:01:52.1]} 30. Nxg2 {[%clk 0:00:29.8]} 30... Re2
{[%clk 0:01:51.5]} 31. Qd1 {[%clk 0:00:30.8]} 31... Qf3 {[%clk 0:01:46.6]} 32.
Qg1 {[%clk 0:00:13.9]} 32... Nxc2 {[%clk 0:01:44.9]} 33. Rf1 {[%clk 0:00:09]}
33... Nb4 {[%clk 0:01:41.7]} 34. Rd1 {[%clk 0:00:09.4]} 34... Nxd3 {[%clk
0:01:41.8]} 0-1

[Event "*** Titled Tuesday 3|2 Blitz"]
[Site "Chess.com"]
[Date "2015.11.03"]
[Round "3"]
[White "motivated_bishop"]
[Black "sorito"]
[Result "0-1"]
[WhiteElo "2138"]
[BlackElo "2074"]
[TimeControl "180+2"]
[EndTime "11:33:15 PST"]
[Termination "sorito won by resignation"]

1. d4 {[%clk 0:03:01.9]} 1... g6 {[%clk 0:02:59.9]} 2. c4 {[%clk 0:03:00.5]}
2... c5 {[%clk 0:03:00]} 3. Nf3 {[%clk 0:02:57.8]} 3... Bg7 {[%clk 0:03:00.9]}
4. Nc3 {[%clk 0:02:57.9]} 4... cxd4 {[%clk 0:03:01.4]} 5. Nxd4 {[%clk
0:02:58.8]} 5... Nc6 {[%clk 0:03:02.9]} 6. Nxc6 {[%clk 0:02:53.8]} 6... bxc6
{[%clk 0:03:03.6]} 7. g3 {[%clk 0:02:54]} 7... Nf6 {[%clk 0:03:04]} 8. Bg2
{[%clk 0:02:55.2]} 8... O-O {[%clk 0:03:05.2]} 9. O-O {[%clk 0:02:56.2]} 9...
Rb8 {[%clk 0:03:05.1]} 10. Qc2 {[%clk 0:02:56.4]} 10... Ba6 {[%clk 0:02:50.6]}
11. b3 {[%clk 0:02:56.9]} 11... d5 {[%clk 0:02:48.1]} 12. cxd5 {[%clk
0:02:56.8]} 12... cxd5 {[%clk 0:02:49.4]} 13. Bb2 {[%clk 0:02:49.4]} 13... Qa5
{[%clk 0:02:49.7]} 14. Rfd1 {[%clk 0:02:39.2]} 14... Rfc8 {[%clk 0:02:49.9]} 15.
Qd2 {[%clk 0:02:32.1]} 15... Rd8 {[%clk 0:02:33.4]} 16. e3 {[%clk 0:02:16.2]}
16... e6 {[%clk 0:02:32.5]} 17. Na4 {[%clk 0:01:44.2]} 17... Qxd2 {[%clk
0:02:32.1]} 18. Rxd2 {[%clk 0:01:46.1]} 18... Rdc8 {[%clk 0:02:30.9]} 19. Bd4
{[%clk 0:01:30.6]} 19... Ne8 {[%clk 0:02:06.4]} 20. Nc5 {[%clk 0:01:18.6]} 20...
Rxc5 {[%clk 0:02:03.9]} 21. Bxc5 {[%clk 0:01:15.1]} 21... Bxa1 {[%clk
0:02:03.9]} 22. Bxa7 {[%clk 0:01:00.8]} 22... Rc8 {[%clk 0:01:59.4]} 23. h4
{[%clk 0:01:01.3]} 23... Nd6 {[%clk 0:01:54.3]} 24. a4 {[%clk 0:00:59.3]} 24...
Bc3 {[%clk 0:01:53.6]} 25. Rc2 {[%clk 0:00:58.9]} 25... Bd3 {[%clk 0:01:52]} 26.
Rc1 {[%clk 0:01:00.2]} 26... Bb4 {[%clk 0:01:47.6]} 27. Rxc8+ {[%clk 0:01:00.6]}
27... Nxc8 {[%clk 0:01:48.4]} 28. Bd4 {[%clk 0:01:02.5]} 28... Bc2 {[%clk
0:01:47.8]} 29. Bf1 {[%clk 0:00:53.3]} 29... Bxb3 {[%clk 0:01:48.7]} 30. Bb5
{[%clk 0:00:55.2]} 30... Nd6 {[%clk 0:01:49.2]} 31. Bc6 {[%clk 0:00:54]} 31...
Ba5 {[%clk 0:01:50.5]} 32. Bc5 {[%clk 0:00:53.6]} 32... Nc4 {[%clk 0:01:49.7]}
33. Bd4 {[%clk 0:00:48.6]} 33... Nb6 {[%clk 0:01:49.6]} 34. Bxb6 {[%clk
0:00:49.1]} 34... Bxb6 {[%clk 0:01:50.3]} 35. Kf1 {[%clk 0:00:50.8]} 35... Ba5
{[%clk 0:01:49.1]} 36. Ke2 {[%clk 0:00:52]} 36... Bc4+ {[%clk 0:01:50.3]} 37.
Kd1 {[%clk 0:00:51]} 37... f5 {[%clk 0:01:51.6]} 38. Bb5 {[%clk 0:00:38.1]}
38... Bxb5 {[%clk 0:01:46.2]} 39. axb5 {[%clk 0:00:40]} 39... Kf7 {[%clk
0:01:47.7]} 40. Kc2 {[%clk 0:00:41]} 40... Ke7 {[%clk 0:01:48.7]} 41. Kb3 {[%clk
0:00:42.4]} 41... Kd6 {[%clk 0:01:48.1]} 42. Ka4 {[%clk 0:00:43.6]} 42... Bb6
{[%clk 0:01:49.1]} 43. Kb4 {[%clk 0:00:44]} 43... e5 {[%clk 0:01:50.6]} 44. Kb3
{[%clk 0:00:40.2]} 44... Kc5 {[%clk 0:01:51.7]} 45. Ka4 {[%clk 0:00:41.4]} 45...
Kc4 {[%clk 0:01:53]} 0-1

[Event "*** Titled Tuesday 3|2 Blitz"]
[Site "Chess.com"]
[Date "2015.11.03"]
[Round "3"]
[White "dretch"]
[Black "kleinebeer98"]
[Result "1-0"]
[WhiteElo "2485"]
[BlackElo "2238"]
[TimeControl "180+2"]
[EndTime "11:34:10 PST"]
[Termination "dretch won by checkmate"]

1. d4 {[%clk 0:03:01.9]} 1... Nf6 {[%clk 0:02:58.2]} 2. c4 {[%clk 0:03:03.1]}
2... e6 {[%clk 0:02:57.3]} 3. Nc3 {[%clk 0:03:04.4]} 3... Bb4 {[%clk 0:02:56]}
4. Qc2 {[%clk 0:03:05.7]} 4... d5 {[%clk 0:02:53.6]} 5. cxd5 {[%clk 0:03:06.2]}
5... exd5 {[%clk 0:02:52.4]} 6. Bg5 {[%clk 0:03:06.1]} 6... h6 {[%clk
0:02:47.4]} 7. Bxf6 {[%clk 0:03:06.9]} 7... Qxf6 {[%clk 0:02:49.3]} 8. a3 {[%clk
0:03:08.6]} 8... Bxc3+ {[%clk 0:02:47.5]} 9. Qxc3 {[%clk 0:03:10.5]} 9... Nc6
{[%clk 0:02:33.8]} 10. e3 {[%clk 0:03:09.8]} 10... O-O {[%clk 0:02:34.6]} 11.
Bb5 {[%clk 0:03:09.1]} 11... Qg6 {[%clk 0:02:07.3]} 12. g3 {[%clk 0:03:07.1]}
12... Bf5 {[%clk 0:01:42.7]} 13. Ne2 {[%clk 0:03:03.5]} 13... Be4 {[%clk
0:01:40.7]} 14. O-O {[%clk 0:03:01.1]} 14... Qg4 {[%clk 0:01:36.5]} 15. f3
{[%clk 0:02:04.3]} 15... Bxf3 {[%clk 0:01:35.7]} 16. Nf4 {[%clk 0:02:03.4]}
16... Be4 {[%clk 0:01:03.1]} 17. Bxc6 {[%clk 0:01:59.9]} 17... bxc6 {[%clk
0:01:05]} 18. Qxc6 {[%clk 0:02:01.1]} 18... Rab8 {[%clk 0:00:54.4]} 19. Rf2
{[%clk 0:01:55.2]} 19... Rb3 {[%clk 0:00:47.2]} 20. Re1 {[%clk 0:01:35.5]} 20...
Rfb8 {[%clk 0:00:35.4]} 21. Qxc7 {[%clk 0:00:43.4]} 21... Rxb2 {[%clk
0:00:32.4]} 22. Ref1 {[%clk 0:00:39]} 22... h5 {[%clk 0:00:22.6]} 23. Qe5 {[%clk
0:00:11.4]} 23... h4 {[%clk 0:00:21.8]} 24. Nxd5 {[%clk 0:00:05.2]} 24... hxg3
{[%clk 0:00:19.6]} 25. Ne7+ {[%clk 0:00:06.4]} 25... Kh8 {[%clk 0:00:16.6]} 26.
Qxg3 {[%clk 0:00:07.6]} 26... Qxg3+ {[%clk 0:00:17.1]} 27. hxg3 {[%clk
0:00:08.6]} 27... Rxf2 {[%clk 0:00:18.4]} 28. Rxf2 {[%clk 0:00:09.9]} 28... Rb1+
{[%clk 0:00:15.3]} 29. Rf1 {[%clk 0:00:11.2]} 29... Rb2 {[%clk 0:00:16.2]} 30.
Rf4 {[%clk 0:00:12.6]} 30... Bb7 {[%clk 0:00:13.5]} 31. Rh4# {[%clk 0:00:13.6]}
1-0

[Event "*** Titled Tuesday 3|2 Blitz"]
[Site "Chess.com"]
[Date "2015.11.03"]
[Round "3"]
[White "ilmago"]
[Black "DeviatkinAndrey"]
[Result "0-1"]
[WhiteElo "1908"]
[BlackElo "2497"]
[TimeControl "180+2"]
[EndTime "11:34:11 PST"]
[Termination "DeviatkinAndrey won by resignation"]

1. e4 {[%clk 0:03:01.9]} 1... c6 {[%clk 0:02:44.6]} 2. d4 {[%clk 0:03:00.3]}
2... d5 {[%clk 0:02:44.1]} 3. Nc3 {[%clk 0:03:00.5]} 3... dxe4 {[%clk
0:02:44.4]} 4. Nxe4 {[%clk 0:03:01.4]} 4... h6 {[%clk 0:02:45.8]} 5. f4 {[%clk
0:02:59.7]} 5... Bf5 {[%clk 0:02:43.7]} 6. Ng3 {[%clk 0:02:54.3]} 6... Bh7
{[%clk 0:02:43.5]} 7. Nf3 {[%clk 0:02:54.7]} 7... e6 {[%clk 0:02:42.8]} 8. Bd3
{[%clk 0:02:53]} 8... Bxd3 {[%clk 0:02:43.3]} 9. Qxd3 {[%clk 0:02:54.5]} 9... c5
{[%clk 0:02:42.5]} 10. Qb5+ {[%clk 0:02:51.6]} 10... Qd7 {[%clk 0:02:43.2]} 11.
Qc4 {[%clk 0:02:44.3]} 11... Qd5 {[%clk 0:02:18.1]} 12. Qa4+ {[%clk 0:02:44.2]}
12... Qc6 {[%clk 0:02:18.2]} 13. Qb3 {[%clk 0:02:40.2]} 13... Nd7 {[%clk
0:02:17.8]} 14. Be3 {[%clk 0:02:38.1]} 14... c4 {[%clk 0:02:16.8]} 15. d5 {[%clk
0:02:25.1]} 15... exd5 {[%clk 0:01:41.5]} 16. Qc3 {[%clk 0:02:25.5]} 16... Ngf6
{[%clk 0:01:41.4]} 17. O-O {[%clk 0:02:22.5]} 17... Bc5 {[%clk 0:01:41.9]} 18.
Rae1 {[%clk 0:02:18.4]} 18... O-O {[%clk 0:01:41.2]} 19. Nd4 {[%clk 0:02:19.1]}
19... Qb6 {[%clk 0:01:38.3]} 20. a3 {[%clk 0:02:12.8]} 20... Rfe8 {[%clk
0:01:38.7]} 21. Bf2 {[%clk 0:02:06.3]} 21... Ng4 {[%clk 0:01:35.3]} 22. Ngf5
{[%clk 0:01:31.1]} 22... Nxf2 {[%clk 0:01:16.7]} 23. Rxe8+ {[%clk 0:01:17.9]}
23... Rxe8 {[%clk 0:01:16.3]} 24. Kxf2 {[%clk 0:01:05.9]} 24... Re4 {[%clk
0:01:08]} 25. Rd1 {[%clk 0:01:06.2]} 25... Qf6 {[%clk 0:00:40.7]} 26. g4 {[%clk
0:00:27.4]} 26... g6 {[%clk 0:00:33.2]} 27. Nxh6+ {[%clk 0:00:24.5]} 27... Kg7
{[%clk 0:00:33.7]} 28. Kg2 {[%clk 0:00:15.1]} 28... Bxd4 {[%clk 0:00:28.6]} 29.
g5 {[%clk 0:00:10.2]} 29... Qxf4 {[%clk 0:00:27.9]} 0-1

[Event "*** Titled Tuesday 3|2 Blitz"]
[Site "Chess.com"]
[Date "2015.11.03"]
[Round "3"]
[White "eltenedor"]
[Black "Nutflush"]
[Result "1-0"]
[WhiteElo "1952"]
[BlackElo "1904"]
[TimeControl "180+2"]
[EndTime "11:34:11 PST"]
[Termination "eltenedor won on time"]

1. c4 {[%clk 0:01:58.1]} 1... e5 {[%clk 0:02:58.5]} 2. g3 {[%clk 0:01:55.8]}
2... Nc6 {[%clk 0:02:59.5]} 3. Bg2 {[%clk 0:01:55.4]} 3... f5 {[%clk 0:03:00.9]}
4. Nc3 {[%clk 0:01:55.2]} 4... Nf6 {[%clk 0:03:00.5]} 5. d3 {[%clk 0:01:55.9]}
5... Bb4 {[%clk 0:02:48.1]} 6. Bd2 {[%clk 0:01:54.9]} 6... O-O {[%clk
0:02:41.9]} 7. a3 {[%clk 0:01:54.6]} 7... Bxc3 {[%clk 0:02:39.6]} 8. Bxc3 {[%clk
0:01:55.2]} 8... d6 {[%clk 0:02:41.1]} 9. b4 {[%clk 0:01:41.5]} 9... Qe8 {[%clk
0:02:39.2]} 10. b5 {[%clk 0:01:40.8]} 10... Ne7 {[%clk 0:02:33.7]} 11. e3 {[%clk
0:01:40.4]} 11... f4 {[%clk 0:02:27.7]} 12. exf4 {[%clk 0:01:34.6]} 12... exf4
{[%clk 0:02:27.2]} 13. Ne2 {[%clk 0:01:35.5]} 13... Ng6 {[%clk 0:01:58.8]} 14.
O-O {[%clk 0:01:28.2]} 14... Nh5 {[%clk 0:01:37.4]} 15. Nd4 {[%clk 0:01:12.3]}
15... Ne5 {[%clk 0:01:21.8]} 16. Re1 {[%clk 0:01:02.3]} 16... Bg4 {[%clk
0:01:03.8]} 17. f3 {[%clk 0:00:58.2]} 17... Bd7 {[%clk 0:00:50.5]} 18. g4 {[%clk
0:00:54.8]} 18... Nf6 {[%clk 0:00:49.1]} 19. Nf5 {[%clk 0:00:44.9]} 19... Bxf5
{[%clk 0:00:46.1]} 20. d4 {[%clk 0:00:43]} 20... Bd7 {[%clk 0:00:07.2]} 21. dxe5
{[%clk 0:00:41.9]} 21... dxe5 {[%clk 0:00:09.1]} 22. Rxe5 {[%clk 0:00:37.5]}
22... Qf7 {[%clk 0:00:09.4]} 23. g5 {[%clk 0:00:31.2]} 23... Ne8 {[%clk
0:00:04.9]} 24. Re4 {[%clk 0:00:27.1]} 24... Nd6 {[%clk 0:00:04.9]} 25. Rd4
{[%clk 0:00:24.1]} 25... Rad8 {[%clk 0:00:04.3]} 26. Qb3 {[%clk 0:00:18.5]}
26... Be6 {[%clk 0:00:04]} 27. Bf1 {[%clk 0:00:17.4]} 1-0

[Event "*** Titled Tuesday 3|2 Blitz"]
[Site "Chess.com"]
[Date "2015.11.03"]
[Round "3"]
[White "AndrewMcStone"]
[Black "metalbattler"]
[Result "1-0"]
[WhiteElo "2001"]
[BlackElo "1911"]
[TimeControl "180+2"]
[EndTime "11:35:08 PST"]
[Termination "AndrewMcStone won by checkmate"]

1. d4 {[%clk 0:03:01.9]} 1... d5 {[%clk 0:03:00.9]} 2. c4 {[%clk 0:03:03.2]}
2... c6 {[%clk 0:03:01.3]} 3. Nc3 {[%clk 0:03:04.4]} 3... Nf6 {[%clk 0:03:01.9]}
4. e3 {[%clk 0:03:03.7]} 4... e6 {[%clk 0:02:58.9]} 5. Nf3 {[%clk 0:03:04.3]}
5... Nbd7 {[%clk 0:02:59.2]} 6. Qc2 {[%clk 0:03:04.9]} 6... Bd6 {[%clk
0:02:59.6]} 7. g4 {[%clk 0:03:06]} 7... Nxg4 {[%clk 0:02:59]} 8. Rg1 {[%clk
0:03:06.8]} 8... Nh6 {[%clk 0:03:00.2]} 9. Bd2 {[%clk 0:02:37.8]} 9... Nf5
{[%clk 0:02:55.4]} 10. e4 {[%clk 0:02:28.4]} 10... dxe4 {[%clk 0:02:55.6]} 11.
Nxe4 {[%clk 0:02:29.3]} 11... Be7 {[%clk 0:02:56.8]} 12. O-O-O {[%clk
0:02:26.9]} 12... Nf6 {[%clk 0:02:47.8]} 13. Bc3 {[%clk 0:01:50]} 13... Qc7
{[%clk 0:02:39.9]} 14. Ne5 {[%clk 0:01:36.2]} 14... Bd6 {[%clk 0:02:02]} 15.
Nxd6+ {[%clk 0:01:26.4]} 15... Qxd6 {[%clk 0:01:59.4]} 16. Bh3 {[%clk
0:01:03.5]} 16... O-O {[%clk 0:01:47.8]} 17. Kb1 {[%clk 0:00:31.7]} 17... b5
{[%clk 0:01:46.3]} 18. c5 {[%clk 0:00:32]} 18... Qc7 {[%clk 0:01:39.3]} 19. Qc1
{[%clk 0:00:19.9]} 19... Nd5 {[%clk 0:01:32.6]} 20. Bxf5 {[%clk 0:00:14.2]}
20... exf5 {[%clk 0:01:30.7]} 21. Qg5 {[%clk 0:00:14.1]} 21... g6 {[%clk
0:01:29.2]} 22. Qh6 {[%clk 0:00:09.1]} 22... Be6 {[%clk 0:01:16.6]} 23. h4
{[%clk 0:00:09.7]} 23... f4 {[%clk 0:00:42]} 24. h5 {[%clk 0:00:08.9]} 24...
Bf5+ {[%clk 0:00:42.7]} 25. Ka1 {[%clk 0:00:08.8]} 25... Nxc3 {[%clk 0:00:21.5]}
26. bxc3 {[%clk 0:00:08.8]} 26... Qa5 {[%clk 0:00:23]} 27. Rc1 {[%clk
0:00:04.5]} 27... b4 {[%clk 0:00:24.4]} 28. hxg6 {[%clk 0:00:04.7]} 28... fxg6
{[%clk 0:00:20.5]} 29. Nxg6 {[%clk 0:00:05.7]} 29... b3 {[%clk 0:00:10.7]} 30.
Ne7+ {[%clk 0:00:05.6]} 30... Kf7 {[%clk 0:00:03.2]} 31. Qg7+ {[%clk 0:00:06.6]}
31... Ke6 {[%clk 0:00:04.3]} 32. Rge1+ {[%clk 0:00:08.2]} 32... Kd7 {[%clk
0:00:04.3]} 33. Nxf5+ {[%clk 0:00:09.1]} 33... Kc8 {[%clk 0:00:05.4]} 34. Nd6+
{[%clk 0:00:09.2]} 34... Kb8 {[%clk 0:00:06.3]} 35. Qb7# {[%clk 0:00:10]} 1-0

[Event "*** Titled Tuesday 3|2 Blitz"]
[Site "Chess.com"]
[Date "2015.11.03"]
[Round "3"]
[White "gmjlh"]
[Black "VovAn1991"]
[Result "0-1"]
[WhiteElo "2632"]
[BlackElo "2484"]
[TimeControl "180+2"]
[EndTime "11:35:09 PST"]
[Termination "VovAn1991 won by resignation"]

1. e4 {[%clk 0:03:00.3]} 1... c5 {[%clk 0:02:59.4]} 2. Nf3 {[%clk 0:03:00.5]}
2... d6 {[%clk 0:03:00.3]} 3. Bb5+ {[%clk 0:03:00.8]} 3... Nd7 {[%clk
0:02:56.9]} 4. O-O {[%clk 0:03:01.3]} 4... a6 {[%clk 0:02:55.7]} 5. Bd3 {[%clk
0:03:01.8]} 5... b5 {[%clk 0:02:50.9]} 6. c4 {[%clk 0:03:00.5]} 6... b4 {[%clk
0:02:35.3]} 7. a3 {[%clk 0:02:52.1]} 7... Bb7 {[%clk 0:02:24.6]} 8. axb4 {[%clk
0:02:51.9]} 8... cxb4 {[%clk 0:02:26.5]} 9. Bc2 {[%clk 0:02:52.9]} 9... Ngf6
{[%clk 0:02:22.4]} 10. Re1 {[%clk 0:02:51.5]} 10... e5 {[%clk 0:02:13.4]} 11. d4
{[%clk 0:02:52]} 11... Be7 {[%clk 0:02:13.6]} 12. b3 {[%clk 0:02:52.9]} 12...
O-O {[%clk 0:02:10.9]} 13. Bb2 {[%clk 0:02:54]} 13... Qc7 {[%clk 0:02:10.9]} 14.
Nbd2 {[%clk 0:02:55]} 14... Rfe8 {[%clk 0:02:10]} 15. Nf1 {[%clk 0:02:56]} 15...
Bf8 {[%clk 0:02:10.9]} 16. Ng3 {[%clk 0:02:56.5]} 16... g6 {[%clk 0:02:10]} 17.
h4 {[%clk 0:02:56.8]} 17... h5 {[%clk 0:02:05.9]} 18. d5 {[%clk 0:02:36.1]}
18... a5 {[%clk 0:02:02]} 19. Ng5 {[%clk 0:02:35]} 19... a4 {[%clk 0:01:53.2]}
20. bxa4 {[%clk 0:02:31]} 20... Nb6 {[%clk 0:01:53.3]} 21. Bb3 {[%clk
0:02:21.9]} 21... Nxc4 {[%clk 0:01:34.7]} 22. Qc2 {[%clk 0:02:21.9]} 22... Rec8
{[%clk 0:01:33.8]} 23. Rac1 {[%clk 0:00:46.9]} 23... Ba6 {[%clk 0:01:32.9]} 24.
Ba1 {[%clk 0:00:48.3]} 24... Qb6 {[%clk 0:01:26.3]} 25. Nf1 {[%clk 0:00:34.6]}
25... Ng4 {[%clk 0:01:19.5]} 26. Qa2 {[%clk 0:00:30.9]} 26... Na5 {[%clk
0:01:09.4]} 27. Nh3 {[%clk 0:00:31.7]} 27... Bh6 {[%clk 0:01:05.2]} 28. Rxc8+
{[%clk 0:00:30.1]} 28... Rxc8 {[%clk 0:01:07.1]} 29. Nh2 {[%clk 0:00:29.3]}
29... Nxb3 {[%clk 0:01:03.5]} 30. Qxb3 {[%clk 0:00:31.2]} 30... Qc5 {[%clk
0:00:51.5]} 31. Nxg4 {[%clk 0:00:23.2]} 31... hxg4 {[%clk 0:00:53.4]} 32. Ng5
{[%clk 0:00:24.1]} 32... Rc7 {[%clk 0:00:37.6]} 33. Bb2 {[%clk 0:00:24.2]} 33...
Qc2 {[%clk 0:00:34.7]} 34. Qxc2 {[%clk 0:00:16.9]} 34... Rxc2 {[%clk 0:00:36.6]}
35. Rb1 {[%clk 0:00:18.1]} 35... Bd3 {[%clk 0:00:34.9]} 36. Rd1 {[%clk
0:00:15.8]} 36... Be2 {[%clk 0:00:33.8]} 37. Rb1 {[%clk 0:00:15.2]} 37... f6
{[%clk 0:00:22.9]} 38. Ne6 {[%clk 0:00:15.7]} 38... Bd3 {[%clk 0:00:23.7]} 39.
Rd1 {[%clk 0:00:14.8]} 39... Bxe4 {[%clk 0:00:24.6]} 40. Ba1 {[%clk 0:00:13.5]}
40... g3 {[%clk 0:00:23.6]} 41. a5 {[%clk 0:00:08.4]} 41... Rxf2 {[%clk
0:00:19.6]} 0-1